Cogmind - Beta 16 --- EXPLORER MODE // 2025.12.29 @ 11:01:52 Player: K.K.Y. Result: Self-destructed Performance ------------- Evolutions (5) 2500 Regions Visited (11) 2200 Robots Destroyed (151) 755 Value Destroyed (6148) 6148 Prototype IDs (19) 380 Alien Tech Used (0) 0 Bonus (1514) 1514 TOTAL SCORE: 13497 Bonus ------- High Alert Combat Kills 12 Follower Combat Kills 1371 Built Enhanced Grunts 300 Friendly Fire -169 Cogmind --------- Core Integrity 388/1000 Matter 252/300 Energy 352/600 System Corruption 8% Temperature Hot (292) Movement Core (2950) Ox58 Location -5/Factory Parts ------- > --- POWER (2) -------- (None) > --- PROPULSION (6) --- (None) > --- UTILITY (8) ------ Huge Storage Unit Huge Storage Unit Advanced Energy Well Target Analyzer Improved Target Analyzer Improved System Shield Dynamic Insulation System > --- WEAPON (2) ------- Compact Ion Cannon Magnetic Acceleration Cannon > --- INVENTORY (25) --- Improved Deuterium Engine F-cell Engine Neutrino Core Improved Antigrav System Advanced Heat Sink Humpback Advanced Signal Interpreter Advanced Terrain Scanner Hacking Suite Hacking Suite Rainbow Chip Wave Gun Wave Gun Gauss Cannon Improved Remote Datajack Advanced Remote Datajack Mining Laser Improved Plasma Cutter Peak State ------------ > --- POWER ------------ F-cell Engine > --- PROPULSION ------- Advanced Treads Advanced Treads Improved Medium Treads Improved Medium Treads Improved Medium Treads > --- UTILITY ---------- Advanced Heat Sink Huge Storage Unit Advanced Energy Well Advanced Weight Redist. System Structural Scanner Advanced Sensor Array Advanced Signal Interpreter Hacking Suite > --- WEAPON ----------- Neutron Cannon Heavy Missile Launcher > --- INVENTORY -------- Enhanced Nuclear Core F-cell Engine F-cell Engine Neutrino Core Huge Storage Unit Humpback Advanced Signal Interpreter Advanced Terrain Scanner Makeshift ECM Suite Improved Weapon Shielding Hacking Suite Improved System Shield Dynamic Insulation System Rainbow Chip Wave Gun Wave Gun Proton Cannon Compact Ion Cannon Gauss Cannon Magnetic Acceleration Cannon Heavy Flak Cannon Mining Laser Power Sword Power Sword [Rating: 80] Favorites ----------- Power Light Angular Momentum Engine Engine Light Angular Momentum Engine Power Core Enhanced Nuclear Core Propulsion Light Treads Treads Light Treads Leg Carbon-fiber Leg Hover Unit Antigrav System Utility Huge Storage Unit Device Structural Scanner Storage Huge Storage Unit Processor Advanced Signal Interpreter Hackware Improved System Shield Protection Core Shielding Weapon Beamcaster Energy Gun Beamcaster Energy Cannon Beam Cannon Ballistic Gun KE Penetrator Ballistic Cannon Slug Cannon Launcher Heavy Missile Launcher Slashing Weapon Power Sword Build | -11 -10 -10 -10 -8 -8 -6 -6 -6 -6 -6 -5 ------- Run | Yrd Mat Min Sub Rec Scr Fac Ext Cet Arc Hub Fac Slots Evolved 11 | . 1 . . . . 8 . . . . 2 Power 1 | . . . . . . . . . . . 1 Propulsion 4 | . . . . . . 3 . . . . 1 Utility 6 | . 1 . . . . 5 . . . . . Weapon . | . . . . . . . . . . . . Parts Attached 122 | 7 12 2 7 . 7 25 14 1 5 28 14 Power 14 | 1 . . 1 . . 4 . . 3 3 2 Engine 8 | 1 . . 1 . . 3 . . 1 2 . Core 6 | . . . . . . 1 . . 2 1 2 Reactor . | . . . . . . . . . . . . Propulsion 38 | 2 2 2 1 . 3 6 4 . 1 14 3 Treads 25 | 2 2 2 1 . 3 6 4 . 1 4 . Leg 11 | . . . . . . . . . . 10 1 Wheel . | . . . . . . . . . . . . Hover 2 | . . . . . . . . . . . 2 Flight . | . . . . . . . . . . . . Utility 47 | 3 7 . 3 . 3 12 5 . 1 8 5 Device 25 | . 3 . 2 . 3 7 3 . . 5 2 Storage 6 | 1 2 . . . . 1 . . . 2 . Processor 3 | . . . . . . 1 . . . . 2 Hackware 3 | . . . . . . 1 1 . . . 1 Protection 10 | 2 2 . 1 . . 2 1 . 1 1 . Artifact . | . . . . . . . . . . . . Weapon 23 | 1 3 . 2 . 1 3 5 1 . 3 4 Energy Gun 6 | 1 1 . 1 . . 1 . . . . 2 Energy Cannon 5 | . 2 . . . . 1 . . . 1 1 Ballistic Gun 5 | . . . . . . 1 3 1 . . . Ballistic Cannon 3 | . . . 1 . 1 . . . . . 1 Launcher 2 | . . . . . . . 1 . . 1 . Special Weapon . | . . . . . . . . . . . . Impact Weapon . | . . . . . . . . . . . . Slashing Weapon 2 | . . . . . . . 1 . . 1 . Piercing Weapon . | . . . . . . . . . . . . Special Melee Weapon . | . . . . . . . . . . . . Unidentified Prototypes 6 | . . . 1 . . 2 . . . 3 . Parts Lost 44 | . . . 2 . . 1 2 2 . 11 26 Power 5 | . . . . . . . . . . 1 4 Propulsion 15 | . . . 1 . . . . 1 . 5 8 Utility 15 | . . . . . . 1 1 1 . 5 7 Weapon 9 | . . . 1 . . . 1 . . . 7 Highest Loss Streak 11 | . . . 2 . . 1 2 1 . 8 11 To Critical Strikes 2 | . . . . . . . . . . . 2 Average Backups 20 | 2 8 14 17 23 23 23 23 24 24 23 22 Power . | . . . . . . . 3 3 3 3 2 Propulsion . | . 1 . . 1 . . . . . . . Utility 8 | 1 6 9 7 8 8 9 10 11 10 10 9 Weapon 10 | . 1 5 9 14 15 13 10 10 10 9 8 Tool/Special . | . . . . . . . . . . . . Unused Backups 45 | . 2 3 2 . 7 10 2 . 2 1 16 Power 2 | . . . . . . . . . . . 2 Propulsion 3 | . 2 . . . . . . . . . 1 Utility 15 | . . 3 2 . 1 2 . . . . 7 Weapon 23 | . . . . . 6 8 2 . 2 1 4 Tool/Special 2 | . . . . . . . . . . . 2 Average Slot Usage (%) 95 | . 95 100 97 100 94 95 99 92 95 94 65 Engine 9 | . 12 12 12 12 12 4 6 6 4 4 . Treads 23 | . 22 25 22 25 25 27 30 25 30 23 . Leg 1 | . . . . . . . . . . 5 12 Device 20 | . 10 12 22 25 19 27 18 25 25 21 12 Storage 10 | . 8 12 12 12 12 6 6 6 6 9 11 Processor 1 | . . . . . . 4 6 6 6 6 5 Hackware 2 | . . . . . . 4 11 10 6 4 1 Protection 4 | . 16 12 1 . . 6 5 . 3 3 2 Energy Gun 6 | . 5 . 11 12 12 4 . . . . 1 Energy Cannon 4 | . 18 25 2 . . 1 . . . 2 . Ballistic Gun 1 | . . . . . . 4 8 6 6 2 . Ballistic Cannon 5 | . . . 9 12 12 1 . . . . 1 Peak Build Rating 80 | 6 12 13 28 28 35 72 75 74 70 80 77 Average Rating 39 | 3 9 12 24 28 31 64 73 68 67 73 61 On Entrance 39 | . 6 12 13 28 28 35 72 74 64 70 72 Avg Prop Armor Cover (%) 7 | . . . . . . 15 . . . 6 . Naked Turns . | . . . . . . . . . . . . Heaviest Build 192 | 10 33 33 103 103 104 112 112 106 115 114 192 Greatest Support 143 | 40 40 40 40 40 42 131 139 139 132 143 89 Greatest Overweight (x) 30 | 3 1 . 5 2 2 2 . . . 7 30 Average Overweight (x) . | . . . 1 2 2 . . . . . 3 Largest Inventory Capacity 25 | 10 25 15 25 25 25 25 25 25 25 25 25 Average Capacity 22 | 6 10 15 21 25 25 25 25 25 25 25 25 Most Carried 25 | 7 14 15 24 25 25 25 25 25 25 25 25 Average Carried 20 | 3 8 14 18 24 24 24 24 25 24 24 23 Final Capacity 25 | 5 15 15 25 25 25 25 25 25 25 25 25 Final Carried 25 | 3 14 15 24 25 25 25 25 25 25 25 19 Class Distribution -------------------- 72% | Hacker-Mutant 21% | Hacker-Skirmisher 6% | Scavenger-Mutant Dominant Class ---------------- Hacker-Mutant | -10/Materials Hacker-Mutant | -10/Mines Hacker-Mutant | -10/Subcaves Hacker-Mutant | -8/Recycling Hacker-Mutant | -8/Scraptown Hacker-Skirmisher | -6/Factory Hacker-Mutant | -6/Extension Hacker-Skirmisher | -6/Cetus Hacker-Skirmisher | -6/Archives Hacker-Skirmisher | -6/Hub_04(d) Scavenger-Mutant | -5/Factory Resources | -11 -10 -10 -10 -8 -8 -6 -6 -6 -6 -6 -5 ----------- Run | Yrd Mat Min Sub Rec Scr Fac Ext Cet Arc Hub Fac Matter Collected 3277 | 270 206 20 186 . 70 703 698 134 192 565 233 Remotely . | . . . . . . . . . . . . Salvage Created 7516 | 100 794 227 574 46 . 2011 1440 157 . 1318 849 Parts 288 | 11 36 17 30 1 . 74 34 4 . 37 44 Haulers Intercepted 6 | . 2 . . . . 3 . . . 1 . Recyclers Shooed 6 | 1 1 . . . . 1 3 . . . . Parts Field Recycled . | . . . . . . . . . . . . Retrieved Matter . | . . . . . . . . . . . . Parts Self-Destructed . | . . . . . . . . . . . . Prevented . | . . . . . . . . . . . . Parts Restored . | . . . . . . . . . . . . Kills | -11 -10 -10 -10 -8 -8 -6 -6 -6 -6 -6 -5 ------- Run | Yrd Mat Min Sub Rec Scr Fac Ext Cet Arc Hub Fac Combat Hostiles Destroyed 106 | . 6 4 14 1 . 25 19 5 . 20 12 Melee 21 | . . . . . . . . . . 16 5 Guns 55 | . 3 . 6 1 . 21 18 2 . 3 1 Cannons 24 | . 2 4 8 . . 4 . . . 1 5 AOE 4 | . . . . . . . 1 3 . . . Classes Destroyed 19 | 2 5 1 4 1 . 2 2 1 . 1 . Worker 2 | . 1 . . . . 1 . . . . . Builder 5 | . 3 . . . . 2 . . . . . Tunneler 4 | 2 . 2 . . . . . . . . . Hauler 6 | . 2 . . . . 3 . . . 1 . Recycler 12 | 1 4 1 . . . 2 3 . . . 1 Mechanic 2 | . . . . . . . . . . 1 1 Operator 2 | . . . . . . . 1 . . 1 . Turret 2 | . . . 2 . . . . . . . . Watcher 8 | . 2 . . . . 3 1 1 . 1 . Swarmer 10 | . . 2 3 . . 5 . . . . . Grunt 46 | . 6 2 . . . 8 13 1 . 15 1 Brawler 1 | . . . . . . . . . . 1 . Duelist 2 | . . . . . . . 1 . . . 1 Sentry 12 | . . . . 1 . 4 5 . . 2 . Hunter 10 | . . . . . . 3 . 1 . . 6 Programmer 11 | . . . . . . 5 . . . 2 4 Cetus Guard 3 | . . . . . . . . 3 . . . Artisan 2 | . . . 2 . . . . . . . . Subdweller 11 | . . . 11 . . . . . . . . Zionite 1 | . . . 1 . . . . . . . . Savage 1 | . . . . . . . . 1 . . . Best Kill Streak 12 | 2 7 2 5 1 . 4 4 4 . 12 2 Combat Bots Only 12 | . 2 2 5 1 . 4 3 3 . 12 2 Max Kills in Single Turn 2 | 1 1 2 1 1 . 2 2 2 . 1 1 Gunslinging . | . . . . . . . . . . . . Exploded 1 | . . . . . . . 1 1 . . . Melee 1 | . . . . . . . . . . 1 1 Uniques/NPCs Destroyed . | . . . . . . . . . . . . Combat | -11 -10 -10 -10 -8 -8 -6 -6 -6 -6 -6 -5 -------- Run | Yrd Mat Min Sub Rec Scr Fac Ext Cet Arc Hub Fac Hostile Shots Fired 1296 | . 37 11 103 4 . 198 192 54 2 400 295 Missed 394 | . 10 2 40 1 . 69 55 19 1 124 73 Hits 902 | . 27 9 63 3 . 129 137 35 1 276 222 Melee 5 | . . . . . . . 5 . . . . Projectile 897 | . 27 9 63 3 . 129 132 35 1 276 222 AOE 3 | . . . 1 . . . . . . . 2 Critical Strikes 37 | . . . 2 . . 7 2 3 . 9 14 Actively Blocked 1 | . . . . . . 1 . . . . . Part Disruptions 3 | . . . . . . . . . . 2 1 Actively Blocked 1 | . . . . . . . . . . . 1 Damage Taken 8891 | . 211 59 650 42 . 1122 1149 437 14 2542 2665 Core 1514 | . 46 . 91 13 . 128 99 20 14 491 612 Absorbed by Shields 128 | . . . . . . . 10 118 . . . Redirected to Shielding 215 | . 10 . 12 . . 92 . . . 76 25 Ignored by Resistances 5440 | . 135 36 389 26 . 684 719 327 9 1551 1564 Regen/Repaired (Parts) 240 | . . . . . . . 172 . . . 68 Core Remaining (%) 50 | 100 . . . . 40 . . . . 11 . Volleys Fired 523 | 9 37 11 144 5 . 110 87 11 3 72 34 Largest 2 | 1 2 2 2 1 . 2 2 2 2 1 2 Hottest 165 | 40 125 120 135 75 . 123 123 67 67 90 165 Shots Fired 779 | 9 72 22 207 5 . 169 135 21 4 71 64 Gun 528 | 9 32 . 132 5 . 140 124 11 3 48 24 Cannon 233 | . 40 22 75 . . 29 4 . . 23 40 Launcher 18 | . . . . . . . 7 10 1 . . Special . | . . . . . . . . . . . . Kinetic 335 | . . . 16 . . 110 124 11 3 48 23 Thermal 392 | 9 72 22 191 5 . 59 4 . . 23 7 Explosive 18 | . . . . . . . 7 10 1 . . Electromagnetic 34 | . . . . . . . . . . . 34 Robot Hit Streak 70 | 9 17 11 70 5 . 21 34 35 4 23 29 Robot Miss Streak 3 | . 1 3 1 . . 3 3 3 . 2 2 Penetration Max 1 | . . . . . . 1 1 . . 1 . Secondary Targets 3 | . . . . . . . 3 . . . . Max Gunslinging Chain 1 | . . . . . . . 1 . . . . Shots Hit Robots 634 | 9 55 15 82 5 . 135 114 17 4 118 80 Core Hits 376 | 4 26 8 28 1 . 78 98 46 1 40 46 Critical Kills 2 | . . . . . . 1 1 . . . . Critical Parts Destroyed 8 | . . . . . . 4 1 . . 3 . Critical Strikes 32 | . 1 . 4 1 . 8 3 . . 11 4 Burn 9 | . 1 . 4 1 . 3 . . . . . Destroy 11 | . . . . . . 5 3 . . 3 . Corrupt 2 | . . . . . . . . . . . 2 Sever 10 | . . . . . . . . . . 8 2 Melee Attacks 79 | . . . . . . . 3 . . 56 20 Impact . | . . . . . . . . . . . . Slashing 79 | . . . . . . . 3 . . 56 20 Piercing . | . . . . . . . . . . . . Sneak Attacks 4 | . . . . . . . . . . 2 2 Combat Hostiles . | . . . . . . . . . . . . Follow-up Attacks 7 | . . . . . . . . . . 6 1 Damage Inflicted 17178 | 98 777 281 1557 104 . 3574 3418 1241 82 4012 2034 Guns 8908 | 98 356 . 761 104 . 2940 3102 289 57 951 250 Cannons 3956 | . 421 281 796 . . 634 110 . . 796 918 Explosions 1227 | . . . . . . . 206 952 25 . 44 Melee 3074 | . . . . . . . . . . 2252 822 Ramming 13 | . . . . . . . . . . 13 . Kinetic 7367 | . . . 65 . . 2350 3102 289 57 951 553 Thermal 5166 | 98 777 281 1492 104 . 1224 110 . . 796 284 Explosive 1183 | . . . . . . . 206 952 25 . . Electromagnetic 375 | . . . . . . . . . . . 375 Impact . | . . . . . . . . . . . . Slashing 3074 | . . . . . . . . . . 2252 822 Piercing . | . . . . . . . . . . . . Highest Corruption 8 | . . . . . . . . . . 1 8 Average Corruption 1 | . . . . . . . . . . 1 2 Corruption Purged . | . . . . . . . . . . . . Corruption Blocked . | . . . . . . . . . . . . Effects 8 | . . . . . . . . . . 6 2 Message Errors 1 | . . . . . . . . . . . 1 Matter Fused 3 | . . . . . . . . . . 3 . Heat Flow Errors 1 | . . . . . . . . . . . 1 Energy Discharges 1 | . . . . . . . . . . 1 . Parts Rejected 1 | . . . . . . . . . . 1 . Weapon Failures 1 | . . . . . . . . . . 1 . Overload Shots . | . . . . . . . . . . . . Overflow Damage 202 | . . . . . . . 5 . . 128 69 Projectiles 16 | . . . . . . . . . . . 16 Explosions 5 | . . . . . . . 5 . . . . Melee 181 | . . . . . . . . . . 128 53 Knockbacks 26 | . . . . . . 2 . . . . 24 Impact . | . . . . . . . . . . . . Kinetic 26 | . . . . . . 2 . . . . 24 Secondary . | . . . . . . . . . . . . Self-Inflicted Damage . | . . . . . . . . . . . . Shots . | . . . . . . . . . . . . Rammed 2 | . . . . . . . . . . 2 . Targets Rammed 3 | . . . . . . . . . . 3 . Kicked . | . . . . . . . . . . . . Crushed 1 | . . . . . . . . . . 1 . Highest Temperature 406 | . 406 90 5 176 . 374 165 . . 25 292 Average Temperature 87 | . 107 32 2 77 . 99 60 . . 7 92 Received Heat Transfer 3518 | . 192 27 120 24 . 303 670 79 9 1836 258 Effects 7 | . 3 . . . . 1 . . . . 3 Shutdowns 1 | . 1 . . . . . . . . . . Interference 4 | . . . . . . 1 . . . . 3 Matter Decay 1 | . 1 . . . . . . . . . . Short Circuit 1 | . 1 . . . . . . . . . . Siege Activations . | . . . . . . . . . . . . Martial Activations . | . . . . . . . . . . . . Shielding Activations . | . . . . . . . . . . . . Robots Disrupted . | . . . . . . . . . . . . Combat Hostiles . | . . . . . . . . . . . . Robots Corrupted 1 | . . . . . . . . . . . 1 Combat Hostiles 1 | . . . . . . . . . . . 1 Parts Fried 2 | . . . . . . . . . . . 2 Impact Corruptions . | . . . . . . . . . . . . Robots Melted 1 | . 1 . . . . . . . . . . Combat Hostiles 1 | . 1 . . . . . . . . . . Parts Melted 20 | . 3 2 4 4 . 6 . . . . 1 Heat Transferred 8964 | 225 1785 592 3182 259 . 2501 148 . . . 272 Parts Sabotaged . | . . . . . . . . . . . . Parts Stolen . | . . . . . . . . . . . . Parts Stripped . | . . . . . . . . . . . . Power Chain Reactions 1 | . . . . . . . . . . . 1 Alert | -11 -10 -10 -10 -8 -8 -6 -6 -6 -6 -6 -5 ------- Run | Yrd Mat Min Sub Rec Scr Fac Ext Cet Arc Hub Fac Maximum Alert Level 2 | . . . . . . . . . . 2 . Low Security (%) 95 | 100 100 100 . 100 . 100 100 100 100 73 100 Level 1 2 | . . . . . . . . . . 18 . Level 2 1 | . . . . . . . . . . 8 . Level 3 . | . . . . . . . . . . . . Level 4 . | . . . . . . . . . . . . Level 5 . | . . . . . . . . . . . . High Security . | . . . . . . . . . . . . Max Security . | . . . . . . . . . . . . Peak Influence 477 | 5 55 50 . 20 . 103 95 136 133 477 50 Initial 25 | . . . . . . . . 21 25 . 1 Average 32 | 2 4 2 . . . 10 16 36 65 148 6 Influence Increases 4387 | 15 219 115 286 65 . 744 658 271 123 1577 314 Destroy 0b10 Robot/C 2640 | . 120 80 140 60 . 500 380 160 80 880 240 Destroy 0b10 Robot/NC 225 | 15 60 15 . . . 55 25 5 . 40 10 Destroy Leader 592 | . 38 20 10 . . 142 72 20 . 230 60 Allied During Kill 227 | . . . 1 . . 1 7 36 24 158 . Successful Hack 108 | . . . . . . 28 65 . . 15 . Disable Machine 48 | . . . . 4 . 4 4 . 12 20 4 Anti-Garrison Action 150 | . . . . . . . . . . 150 . Destroy Structure 172 | . 1 . . 1 . 14 60 50 7 39 . Lose Combat Pursuer 225 | . . . 135 . . . 45 . . 45 . Influence Decreases 4367 | 15 219 115 286 65 . 744 607 231 214 1572 299 Entered New Map 100 | . . . . . . . . 30 66 . 4 Time Decay 3971 | 15 219 115 266 60 . 744 587 183 148 1383 251 Lost Part 144 | . . . . . . . 20 10 . 70 44 Lost Ally 133 | . . . 20 5 . . . 8 . 100 . Purge Threat 19 | . . . . . . . . . . 19 . Squads Dispatched 36 | . . 1 . . . 11 3 2 . 16 3 Investigation 13 | . . 1 . . . 3 2 2 . 4 1 Extermination 9 | . . . . . . 4 . . . 3 2 Reinforcement 12 | . . . . . . 4 1 . . 7 . Assault 1 | . . . . . . . . . . 1 . Garrison 1 | . . . . . . . . . . 1 . Intercept . | . . . . . . . . . . . . Searches Triggered . | . . . . . . . . . . . . Construction Impeded 2 | . . . . . . 1 . . . 1 . Haulers Reinforced 4 | . . . . . . 2 . . . 2 . Active Scanning Responses . | . . . . . . . . . . . . Cargo Convoy Interrupts 1 | . . . . . . 1 . . . . . Stealth | -11 -10 -10 -10 -8 -8 -6 -6 -6 -6 -6 -5 --------- Run | Yrd Mat Min Sub Rec Scr Fac Ext Cet Arc Hub Fac Distress Signals 11 | . . . . . . 2 1 1 . 4 3 Communications Jammed . | . . . . . . . . . . . . Distress Signals . | . . . . . . . . . . . . Times Spotted 182 | . 11 4 20 3 . 29 22 9 3 54 27 Peak Tracking Total 11 | . 2 2 5 1 . 4 5 5 2 11 6 Tactical Retreats 9 | . . . 3 . . . 2 . . 3 1 ECM-based Alert Blocks 2 | . . . . . . . . . . . 2 Traps | -11 -10 -10 -10 -8 -8 -6 -6 -6 -6 -6 -5 ------- Run | Yrd Mat Min Sub Rec Scr Fac Ext Cet Arc Hub Fac Traps Triggered 7 | . . . . . . 2 1 . . 2 2 Indirectly . | . . . . . . . . . . . . Trap Hack Attempts . | . . . . . . . . . . . . Triggered . | . . . . . . . . . . . . Disarmed . | . . . . . . . . . . . . Reprogrammed . | . . . . . . . . . . . . Reused . | . . . . . . . . . . . . Traps Extracted . | . . . . . . . . . . . . Installed . | . . . . . . . . . . . . Triggered . | . . . . . . . . . . . . Machines | -11 -10 -10 -10 -8 -8 -6 -6 -6 -6 -6 -5 ---------- Run | Yrd Mat Min Sub Rec Scr Fac Ext Cet Arc Hub Fac Machines Disabled 19 | . . . 2 1 . 1 3 2 3 6 1 Max in Single Turn 2 | . . . 1 . . 1 2 1 2 1 1 Garrison Access 2 | . . . . . . 1 . . . 1 . Machines Repaired . | . . . . . . . . . . . . Machines Dismantled . | . . . . . . . . . . . . Machines Sabotaged . | . . . . . . . . . . . . Overloaded Fab Kills . | . . . . . . . . . . . . Hacking | -11 -10 -10 -10 -8 -8 -6 -6 -6 -6 -6 -5 --------- Run | Yrd Mat Min Sub Rec Scr Fac Ext Cet Arc Hub Fac Machines Accessed 39 | . . 1 2 . . 10 15 2 . 8 1 Terminals 27 | . . . . . . 3 14 2 . 8 . Fabricators 1 | . . . . . . 1 . . . . . Repair Stations 2 | . . . . . . . 1 . . . 1 Recycling Units 1 | . . . . . . 1 . . . . . Scanalyzers 4 | . . . . . . 4 . . . . . Garrison Access 1 | . . . . . . 1 . . . . . Total Hacks 159 | . . 1 5 . . 66 46 8 . 30 3 Successful 106 | . . 1 5 . . 49 26 8 . 15 2 Failed 53 | . . . . . . 17 20 . . 15 1 Catastrophic 5 | . . . . . . 3 1 . . 1 . Database Lockouts . | . . . . . . . . . . . . Manual 26 | . . . . . . . 15 1 . 10 . Terminals 89 | . . . . . . 11 40 8 . 30 . Fabricators 3 | . . . . . . 3 . . . . . Repair Stations 9 | . . . . . . . 6 . . . 3 Recycling Units 1 | . . . . . . 1 . . . . . Scanalyzers 49 | . . . . . . 49 . . . . . Garrison Access 2 | . . . . . . 2 . . . . . Terminal Hacks 42 | . . 1 5 . . 2 14 8 . 12 . Record 12 | . . . 4 . . . . 8 . . . Part Schematic 16 | . . . . . . 2 9 . . 5 . Robot Schematic 2 | . . . . . . . 1 . . 1 . Robot Analysis 1 | . . . . . . . . . . 1 . Open Door 5 | . . 1 . . . . 4 . . . . Alert Level 1 | . . . . . . . . . . 1 . Unreport Threat 1 | . . . . . . . . . . 1 . Recall Investigation 1 | . . . . . . . . . . 1 . Recall Reinforcements 2 | . . . . . . . . . . 2 . Proto ID Catalog 1 | . . . 1 . . . . . . . . Fabricator Hacks 1 | . . . . . . 1 . . . . . Build 1 | . . . . . . 1 . . . . . Repair Station Hacks 8 | . . . . . . . 6 . . . 2 Scan Component 4 | . . . . . . . 3 . . . 1 Repair 4 | . . . . . . . 3 . . . 1 Recycling Unit Hacks 1 | . . . . . . 1 . . . . . Retrieve Components 1 | . . . . . . 1 . . . . . Scanalyzer 44 | . . . . . . 44 . . . . . Insert Component 21 | . . . . . . 21 . . . . . Analyze 23 | . . . . . . 23 . . . . . Garrison Access Hacks 1 | . . . . . . 1 . . . . . Seal Access 1 | . . . . . . 1 . . . . . Unauthorized Hacks 9 | . . . . . . . 6 . . 3 . Terminals 9 | . . . . . . . 6 . . 3 . Assimilate 3 | . . . . . . . 3 . . . . Botnet 6 | . . . . . . . 3 . . 3 . Fabricators . | . . . . . . . . . . . . Repair Stations . | . . . . . . . . . . . . Recycling Units . | . . . . . . . . . . . . Scanalyzers . | . . . . . . . . . . . . Garrison Access . | . . . . . . . . . . . . Data Cores Recovered 1 | . . . . . . . 1 . . . . Used . | . . . . . . . . . . . . Hacking Detections 30 | . . . . . . 8 11 2 . 8 1 Full Trace Events 10 | . . . . . . 2 2 2 . 4 . Feedback Events 1 | . . . . . . . . 1 . . . Hackware Fried 1 | . . . . . . . . 1 . . . Feedback Blocked . | . . . . . . . . . . . . Robot Schematics Acquired 2 | . . . . . . . 1 . . 1 . Robots Built . | . . . . . . . . . . . . Authchips . | . . . . . . . . . . . . Time . | . . . . . . . . . . . . Total Robot Build Rating . | . . . . . . . . . . . . Part Schematics Acquired 36 | . . . . . . 22 9 . . 5 . Parts Built 2 | . . . . . . 2 . . . . . Authchips . | . . . . . . . . . . . . Time 53 | . . . . . . 53 . . . . . Total Part Build Rating 12 | . . . . . . 12 . . . . . Part Studies Acquired . | . . . . . . . . . . . . Parts Repaired 4 | . . . . . . . 3 . . . 1 Time 213 | . . . . . . . 114 . . . 99 Parts Recycled . | . . . . . . . . . . . . Recycled Matter . | . . . . . . . . . . . . Retrieved Matter . | . . . . . . . . . . . . Retrieved Components 9 | . . . . . . 9 . . . . . Parts Scanalyzed 20 | . . . . . . 20 . . . . . Part Schematics Acquired 20 | . . . . . . 20 . . . . . Parts Damaged 3 | . . . . . . 3 . . . . . Bothacking | -11 -10 -10 -10 -8 -8 -6 -6 -6 -6 -6 -5 ------------ Run | Yrd Mat Min Sub Rec Scr Fac Ext Cet Arc Hub Fac Used RIF Installer . | . . . . . . . . . . . . Robots Hacked . | . . . . . . . . . . . . Non-combat . | . . . . . . . . . . . . Combat . | . . . . . . . . . . . . Robot Hacks Applied . | . . . . . . . . . . . . Relay Couplers Released 7 | . . . . . . . . . . 3 4 Machine Destruction 3 | . . . . . . . . . . 3 . Programmers 4 | . . . . . . . . . . . 4 Fabnet Peak Effective % . | . . . . . . . . . . . . Robots Rewired . | . . . . . . . . . . . . Allies Hacked . | . . . . . . . . . . . . Hacks Repelled . | . . . . . . . . . . . . Allies | -11 -10 -10 -10 -8 -8 -6 -6 -6 -6 -6 -5 -------- Run | Yrd Mat Min Sub Rec Scr Fac Ext Cet Arc Hub Fac Total Allies 17 | . . 2 5 . . . 5 5 . . . Largest Group 7 | . . 2 3 3 2 2 5 7 7 6 . Highest-Rated Group 670 | . . 39 57 57 38 38 266 670 670 511 . Highest-Rated Ally 159 | . . 31 31 19 19 19 159 159 159 96 . Total Orders . | . . . . . . . . . . . . Ally Attacks 252 | . . . 28 29 . 14 . 39 19 123 . Total Damage 7059 | . . . 385 474 . 193 . 1039 602 4366 . Kills 42 | . . . 5 2 . . . 3 4 28 . Allies Corrupted 1 | . . . . . . . . . . 1 . Allies Melted . | . . . . . . . . . . . . Intel | -11 -10 -10 -10 -8 -8 -6 -6 -6 -6 -6 -5 ------- Run | Yrd Mat Min Sub Rec Scr Fac Ext Cet Arc Hub Fac Active Infowar (turns) 15976 | . . . 5716 1516 2379 2416 1390 392 202 1639 326 Sensors 5205 | . . . . . . 2410 688 392 202 1513 . Structural 15650 | . . . 5716 1516 2379 2416 1390 392 202 1639 . ECM 328 | . . . . . . 2 . . . . 326 Robot Analysis Total 1 | . . . . . . . . . . 1 . Derelict Logs Recovered 6 | . . 1 2 . 3 . . . . . . Drone Launches . | . . . . . . . . . . . . Drone Recoveries . | . . . . . . . . . . . . Exploration | -11 -10 -10 -10 -8 -8 -6 -6 -6 -6 -6 -5 ------------- Run | Yrd Mat Min Sub Rec Scr Fac Ext Cet Arc Hub Fac Turns Passed 22110 | 108 1541 1403 7377 1516 2379 2705 1416 392 202 2018 1053 Spaces Moved 8216 | 58 836 761 2477 468 733 1066 613 125 103 739 237 Core 36 | 31 . . . . . . . . . 2 3 Treads 7800 | 27 836 761 2477 468 733 1066 613 125 103 591 . Legs 339 | . . . . . . . . . . 146 193 Wheels . | . . . . . . . . . . . . Hover 41 | . . . . . . . . . . . 41 Flight . | . . . . . . . . . . . . Fastest Speed 50 | 50 160 160 160 320 317 158 159 164 164 152 190 Average Speed 226 | 124 162 160 280 320 319 162 162 164 164 174 317 Slowest Speed 1550 | 200 240 160 560 320 325 317 164 165 165 400 1550 Overloaded Moves . | . . . . . . . . . . . . Propulsion Burnouts . | . . . . . . . . . . . . Robots Hopped . | . . . . . . . . . . . . Potential Cave-ins 8 | . . . . . . . 8 . . . . Cave-ins Triggered . | . . . . . . . . . . . . Exploration Rate (%) 63 | 5 97 99 97 96 52 32 66 62 80 68 7 Regions Visited 11 Branch Regions 8 Pre-discovered Areas 2 | . . . 2 . . . . . . . . Known Exits Taken 11 | 1 1 1 1 1 1 1 1 1 1 1 . Unknown Exits Taken . | . . . . . . . . . . . . Scrap Searched 19 | . . 1 12 . 6 . . . . . . Spaces Dug 40 | . . . 15 . . . 25 . . . . Terrain Destroyed 280 | . . . 20 . . 12 135 101 10 2 . Melee 3 | . . . . . . . 3 . . . . Projectile 39 | . . . 20 . . 12 5 . . 2 . AOE 238 | . . . . . . . 127 101 10 . . Terrain Rammed . | . . . . . . . . . . . . Walls Destroyed . | . . . . . . . . . . . . Machines Disabled . | . . . . . . . . . . . . Actions | -11 -10 -10 -10 -8 -8 -6 -6 -6 -6 -6 -5 --------- Run | Yrd Mat Min Sub Rec Scr Fac Ext Cet Arc Hub Fac Total 10893 | 85 948 927 2709 483 773 1887 895 291 134 1321 440 Wait 1736 | 3 35 139 58 10 9 638 159 154 15 393 123 Move 8205 | 57 835 760 2476 467 732 1065 612 124 102 738 237 Hop . | . . . . . . . . . . . . Pick Up 102 | 8 16 8 14 1 11 21 3 . 3 10 7 Fast Attach 37 | 1 2 . 2 . 3 6 6 . 2 7 8 Attach 44 | 6 3 . 3 . . 10 1 . . 8 13 Detach 7 | 1 . . 1 . . 3 . . . 2 . Swap 62 | . 9 2 4 . 4 9 12 1 4 17 . Drop 104 | . 11 7 7 . 14 25 12 1 5 22 . Fire 523 | 9 37 11 144 5 . 110 87 11 3 72 34 Melee 70 | . . . . . . . 3 . . 49 18 Ram . | . . . . . . . . . . . . Kick . | . . . . . . . . . . . . Crush 3 | . . . . . . . . . . 3 . Escape Stasis . | . . . . . . . . . . . . Rewire . | . . . . . . . . . . . . Trap . | . . . . . . . . . . . . Miscellaneous . | . . . . . . . . . . . . Route ------- -11/Scrapyard -10/Materials (discovered 5 exits: *Mat x3 / *Min / *Sub) -10/Mines (discovered 3 exits: *Mat x2 / *Sub) -10/Subcaves (discovered 3 exits: *Mat x2 / *Rec) -8/Recycling (discovered 2 exits: *Fac / *Scr) -8/Scraptown -6/Factory (discovered 2 exits: *Fac / *Ext) -6/Extension (discovered 2 exits: *Fac / *Cet) -6/Cetus -6/Archives (discovered 3 exits: *Fac / *Hub x2) -6/Hub_04(d) (discovered 3 exits: *Fac x3) -5/Factory History --------- Turn | Location | Event 3 | -11/Scrapyard | Identified exit to Materials 3 | -11/Scrapyard | Discovered exit to Materials (range 16) 109 | -11/Scrapyard | Entered Materials 109 | -10/Materials | Evolved 1 slot: Utility x1 305 | -10/Materials | Build established: Hacker-Mutant 484 | -10/Materials | Identified exit to Materials 484 | -10/Materials | Discovered exit to Materials (range 9) 597 | -10/Materials | Identified exit to Subcaves 597 | -10/Materials | Discovered exit to Subcaves (range 11) 877 | -10/Materials | Discovered exit to Materials (range 15) 1325 | -10/Materials | Discovered exit to Materials (range 11) 1589 | -10/Materials | Identified exit to Mines 1589 | -10/Materials | Discovered exit to Mines (range 15) 1650 | -10/Materials | Entered Mines 1766 | -10/Mines | Learned Materials terminal intel 1807 | -10/Mines | Discovered exit to Materials (range 2) 2055 | -10/Mines | Met a Derelict shopkeep closing up shop 2145 | -10/Mines | A weapon hastily lodged in a ceiling crevice suddenly fell to the ground 2159 | -10/Mines | Discovered exit to Materials (range 6) 3020 | -10/Mines | Discovered exit to Subcaves (range 10) 3053 | -10/Mines | Entered Subcaves 3053 | -10/Subcaves | Accompanied by 2 allies 3054 | -10/Subcaves | Approached by a straggling Scientist 3058 | -10/Subcaves | Led the pair of lost Derelicts to an unsafe place 3129 | -10/Subcaves | Learned 2 Materials zone layouts 3161 | -10/Subcaves | Identified exit to Materials 3161 | -10/Subcaves | Discovered exit to Materials (range 9) 3722 | -10/Subcaves | Visited Clippyterm 3726 | -10/Subcaves | Learned Research machine intel 3726 | -10/Subcaves | Learned location of Extension (-6) 3918 | -10/Subcaves | Visited 4L-MR0's lab 3941 | -10/Subcaves | Found Rainbow Chip 4155 | -10/Subcaves | Shifting Twisted Machinery released Slug Cannon 4180 | -10/Subcaves | Shifting Twisted Machinery released Sub. Machine Gun 4286 | -10/Subcaves | Disturbed a concealed Subdweller 4302 | -10/Subcaves | Core integrity fell below 50% 4381 | -10/Subcaves | Learned location of Zion (-7) 4381 | -10/Subcaves | Met a Zionite searching for "candidates" 4904 | -10/Subcaves | A swath of the cavern ceiling suddenly collapsed 4963 | -10/Subcaves | A swath of the cavern ceiling suddenly collapsed 5515 | -10/Subcaves | Visited triangular shrine 5534 | -10/Subcaves | Found Prototype Device 5534 | -10/Subcaves | Identified V3-11A's Pendant 5539 | -10/Subcaves | Befriended Subdweller 5859 | -10/Subcaves | Befriended Subdweller 5950 | -10/Subcaves | Shifting Twisted Machinery released Sub. Shrapnel Launcher 5962 | -10/Subcaves | Shifting Twisted Machinery released Sub. Machine Gun 6155 | -10/Subcaves | Learned Materials terminal intel 6229 | -10/Subcaves | Identified exit to Recycling 6229 | -10/Subcaves | Discovered exit to Recycling (range 15) 6495 | -10/Subcaves | Approached by friendly Subdweller 7267 | -10/Subcaves | Discovered exit to Materials (range 3) 7338 | -10/Subcaves | Shifting Twisted Machinery released Battle Cannon 7347 | -10/Subcaves | Shifting Twisted Machinery released Barrage Gun 8777 | -10/Subcaves | Disturbed a concealed Subdweller 8779 | -10/Subcaves | Befriended Subdweller 8821 | -10/Subcaves | Disturbed a concealed Subdweller 8824 | -10/Subcaves | Befriended Subdweller 10430 | -10/Subcaves | Entered Recycling 10430 | -8/Recycling | Accompanied by 3 allies 11459 | -8/Recycling | Identified exit to Factory 11459 | -8/Recycling | Discovered exit to Factory (range 8) 11533 | -8/Recycling | Scanned before Scraplab entrance 11904 | -8/Recycling | Identified exit to Scraptown 11904 | -8/Recycling | Discovered exit to Scraptown (range 11) 11914 | -8/Recycling | Entered Scraplab 11946 | -8/Recycling | Entered Scraptown 11946 | -8/Scraptown | Accompanied by 2 allies 12190 | -8/Scraptown | Delivered V3-11A's Pendant to T0-NE2 in exchange for information 12544 | -8/Scraptown | Scanned Subdweller tech in exchange for log data 12554 | -8/Scraptown | Learned Research stockpile data 12710 | -8/Scraptown | Visited Comm Corps 12736 | -8/Scraptown | Visited TADAMA 12785 | -8/Scraptown | Heard Great Nut preacher, LISTEN AND RECITE! 12795 | -8/Scraptown | Visited CPS Storage 12821 | -8/Scraptown | Visited Shadow of the Wyrm 12941 | -8/Scraptown | Visited Bundlers 13325 | -8/Scraptown | Visited Awakened 13363 | -8/Scraptown | Visited Assassins FH 14309 | -8/Scraptown | Discovered exit to Factory (range 3) 14325 | -8/Scraptown | Entered Factory 14325 | -6/Factory | Accompanied by 2 allies 14325 | -6/Factory | Evolved 8 slots: Propulsion x3, Utility x5 14326 | -6/Factory | Identified exit to Extension 14505 | -6/Factory | Identified exit to Factory 14505 | -6/Factory | Discovered exit to Factory (range 9) 14817 | -6/Factory | Fabricated KE Penetrator (x2) 15250 | -6/Factory | Build established: Hacker-Skirmisher 15370 | -6/Factory | Cargo convoy interrupted 17030 | -6/Factory | Entered Extension 17552 | -6/Extension | Repaired Structural Scanner 17592 | -6/Extension | Repaired Adv. Weight Redist. System 17643 | -6/Extension | Repaired Imp. Medium Treads 17705 | -6/Extension | Disrupted transfer network 17759 | -6/Extension | Build established: Hacker-Mutant 18284 | -6/Extension | Rescued A7 18298 | -6/Extension | Rescued a captive Derelict 18316 | -6/Extension | Rescued a captive Derelict 18317 | -6/Extension | Rescued a captive Derelict 18346 | -6/Extension | Rescued a captive Derelict 18421 | -6/Extension | Discovered exit to Factory (range 12) 18422 | -6/Extension | Identified exit to Cetus 18422 | -6/Extension | Discovered exit to Cetus (range 8) 18446 | -6/Extension | Entered Cetus 18446 | -6/Cetus | Accompanied by 5 allies (A7) 18451 | -6/Cetus | Acquired a Cetus Manufacturing Module code from A7 18473 | -6/Cetus | Spotted Cetus Guard 18474 | -6/Cetus | Spotted Cetus Guard 18476 | -6/Cetus | Spotted Cetus Guard 18476 | -6/Cetus | Spotted Cetus Guard 18488 | -6/Cetus | Build established: Hacker-Skirmisher 18491 | -6/Cetus | Destroyed Cetus Guard 18491 | -6/Cetus | Destroyed Cetus Guard 18497 | -6/Cetus | Destroyed Cetus Guard 18499 | -6/Cetus | Allies destroyed Cetus Guard 18525 | -6/Cetus | Lost 3 allies 18561 | -6/Cetus | Started Cetus Manufacturing Module 18586 | -6/Cetus | Manufactured an Enhanced Grunt 18611 | -6/Cetus | Manufactured an Enhanced Grunt 18636 | -6/Cetus | Manufactured an Enhanced Grunt 18661 | -6/Cetus | Manufactured an Enhanced Grunt 18686 | -6/Cetus | Manufactured an Enhanced Grunt 18729 | -6/Cetus | Imp. System Shield fried by hacking feedback 18805 | -6/Cetus | Identified exit to Archives 18805 | -6/Cetus | Discovered exit to Archives (range 15) 18838 | -6/Cetus | Entered Archives 18838 | -6/Archives | Accompanied by 7 allies (A7) 18885 | -6/Archives | Identified exit to Hub_04(d) 18885 | -6/Archives | Discovered exit to Hub_04(d) (range 16) 18911 | -6/Archives | Discovered exit to Hub_04(d) (range 13) 18927 | -6/Archives | Discovered exit to Factory (range 16) 19040 | -6/Archives | Entered Hub_04(d) 19040 | -6/Hub_04(d) | Accompanied by 6 allies 19040 | -6/Hub_04(d) | Discovered exit to Factory (range 11) 19300 | -6/Hub_04(d) | Discovered exit to Factory (range 5) 19691 | -6/Hub_04(d) | Garrison activated, responded to threat 19831 | -6/Hub_04(d) | Discovered exit to Factory (range 6) 20619 | -6/Hub_04(d) | Core integrity fell below 50% 20666 | -6/Hub_04(d) | Lost 8 parts (5n3u) 20708 | -6/Hub_04(d) | Destroyed 12 combat bots 20764 | -6/Hub_04(d) | Core integrity fell below 20% 20993 | -6/Hub_04(d) | Build established: Scavenger-Mutant 21058 | -6/Hub_04(d) | Entered Factory 21058 | -5/Factory | Evolved 2 slots: Power x1, Propulsion x1 21388 | -5/Factory | Repaired Adv. Energy Well 21581 | -5/Factory | Lost 11 parts (1p4n5u1w) 21713 | -5/Factory | Lost 3 parts (1n1u1w) 22083 | -5/Factory | Lost 3 parts (3w) 22096 | -5/Factory | Core integrity fell below 50% 22111 | -5/Factory | Self-destructed Last Messages --------------- 22086_ Enh. Nuclear Core destroyed. 22087_ P-70 Sage resets P-70 Sage, system corruption cleaned. 22087_ C-30 ARC bursts open, deploying its payload. 22087_ G-67 Veteran unfolds itself. 22087_ G-50 Soldier unfolds itself. 22089_ Hpw. Shock Rifle destroyed. 22095_ Proton Cannon destroyed. 22096_ Mic. Fission Core destroyed. 22097_ Adv. Heat Sink destroyed. 22098_ P-70 Sage resets P-70 Sage, system corruption cleaned. 22098_ Antigrav System destroyed. 22099_ Destroyed Antigrav System. 22102_ Hpw. Shock Rifle melted. 22102_ P-70 Sage destroyed. 22105_ Critical hit (Burn: +37). 22108_ Destroyed Imp. Heat Sink. 22108_ P-70 Sage knocked back. Map ----- +----------------------------------------------------+ | ?????????????????????????????????????????????????? | | ?????????????????????????????????????????????????? | | ?????????????????????????????????????????????????? | | ?????????????????????????????????????????????????? | | ?????????????????????????????????????????????????? | | ?????????????????????????????????????????????????? | | ?????????????????????????????????????????????????? | | ?????????????????????????????????????????????????? | | ?????????????????????????????????????????????????? | | ?????????????????????????????????????????????????? | | ?????????????????????????????????????????????????? | | ?????????????????????????????????????????????????? | | ?????????????????????????????????????????????????? | | ?????????????????????????????????????????????????? | | ??????????????????????????###########+###????????? | | ??????????????????????????# ?????????? | | ??????????????????????????# ??????????? | | ???????????????????######## ???????????? | | ????????????????? [# ?????????????? | | ???????????????? ![# ???????????????? | | ?????????????? """"%# #????????????????? | | ?????????????#% """"=# #????????????????? | | ?????????????# p """ !#! #????????????????? | | ?????????????#"" p "" *%;! #????????????????? | | ?????????????#"" %g!%! !#! #????????????????? | | ?????????????#"" [ gg @# #????????????????? | | ?????????????#"S " # #????????????????? | | ??????????????"" """ # #????????????????? | | ??????????????"" """"g# ^ #????????????????? | | ?????????????? # ^ ^ #????????????????? | | ??????????????############# #????????????????? | | ??????????????????????????# #????????????????? | | ?????????????????########## %#????????????????? | | ?????????????????# !%* # #????????????????? | | ?????????????????#! [ # #????????????????? | | ?????????????????#%" """" # #????????????????? | | ?????????????????# """""" # #????????????????? | | ?????????????????# " """" +% #????????????????? | | ?????????????????# """"" # #??????!*????????? | | ?????????????????# # #?????? ???????? | | ?????????????????# % ! # #??????? ???????? | | ?????????????????#% # #??????? ??????? | | ?????????????????########## ##########+#####+# | | ?????????????############## | | ?????????????# + | | ?????????????# # | | ?????????????# # | | ?????????????# # | | ?????????????# """" # ############## | | ?????????????# """" # # # | +----------------------------------------------------+ Best States ------------- Heat Dissipation 70 Energy Generation 27 Energy Capacity 1000 Matter Stores 300 Matter Capacity 300 Sight Range 16 Robot Scan Range 16 Terrain Scan Density 10 ECM Strength 2 Power Amplification 20 Additional Mass Support 9 EM Shielding 2 Armor Coverage 225 Resistance: KI 35 Resistance: TH 35 Resistance: EX 35 Resistance: EM 35 Resistance: I 35 Resistance: S 35 Resistance: P 35 Core Shielding 20 Power Shielding 33 Utility Shielding 66 Weapon Shielding 66 Evasion (%) 50 Target Analysis 8 Recoil Reduction 5 Offensive Hacking 30 Defensive Hacking 12 Item Schematics ----------------- Imp. System Shield | -6/Factory | Scanalyzed Mak. ECM Suite | -6/Factory | Scanalyzed Dynamic Insulation System | -6/Factory | Scanalyzed Adv. Signal Interpreter | -6/Factory | Scanalyzed Humpback | -6/Factory | Scanalyzed Proton Cannon | -6/Factory | Scanalyzed Adv. Heat Sink | -6/Factory | Scanalyzed Power Sword | -6/Factory | Scanalyzed Adv. Terrain Scanner | -6/Factory | Scanalyzed Imp. Weapon Shielding | -6/Factory | Scanalyzed Slug Cannon | -6/Factory | Scanalyzed Hvy. Rocket Launcher | -6/Factory | Scanalyzed Mining Laser | -6/Factory | Scanalyzed Missile Launcher | -6/Factory | Scanalyzed Flak Cannon | -6/Factory | Scanalyzed Magnetic Acceleration Cannon | -6/Factory | Scanalyzed Mak. Hammer | -6/Factory | Scanalyzed KE Penetrator | -6/Factory | Scanalyzed Adv. Melee Analysis Suite | -6/Factory | Hacked Matter Neutralizer | -6/Factory | Hacked Assault Cannon | -6/Factory | Scanalyzed F-cell Engine | -6/Factory | Scanalyzed Adv. Thermal Shield | -6/Extension | Hacked Imp. Force Field | -6/Extension | Hacked Imp. Trap Scanner | -6/Extension | Hacked Wave Gun | -6/Extension | Hacked Antimatter Reactor | -6/Extension | Hacked Imp. Remote Shield | -6/Extension | Hacked Dispersion Rifle | -6/Extension | Hacked Hvy. Tesla Rifle | -6/Extension | Hacked Imp. Gyrokinetic Inverter | -6/Extension | Hacked Hvy. Disruptor Cannon | -6/Hub_04(d) | Hacked Arm. Medium Treads | -6/Hub_04(d) | Hacked Imp. Remote Force Field | -6/Hub_04(d) | Hacked Remote Force Field | -6/Hub_04(d) | Hacked Hardcell Cannon | -6/Hub_04(d) | Hacked Robot Schematics ------------------ G-50 Soldier | -6/Extension | Hacked Y-54 Guardian | -6/Hub_04(d) | Hacked Fabricated ------------ KE Penetrator | x2 | -6/Factory | Preloaded Repaired ---------- Structural Scanner | 30% | -6/Extension Adv. Weight Redist. System | 29% | -6/Extension Imp. Medium Treads | 29% | -6/Extension Adv. Energy Well | 15% | -5/Factory Studied --------- None Alien Tech Used ----------------- None Achievements -------------- None Challenges ------------ None Game ------ Seed PhasingInertialInterface Manual? 0 Play Time 01:27:43 Cumulative 232.0 hours Start 2025.12.29 @ 09:34:21 End 2025.12.29 @ 11:01:52 Sessions 1 Manual Loads 0 Difficulty Explorer Special Mode None Game No. 361 Rogue 0 Adventurer 0 Explorer 361 Win Type - Total 0 Types 0/0/0/0/0/0/0/0/0/0 Lore% 71 Gallery% 68 Achievement% 54 Wizard Run 0 Options --------- Layout 1 ASCII 0 Keyboard 0 Movement Mouse Keybinds 0 Fullscreen 1 Font 24/Smallcaps Map View 50x35 Zoom Use 0% Tactical HUD 1 Map Filters NONE Filters NONE Steam 1 RUN: e2ce0748-275c-422e-a461-7bd7bac1405b